[Event "Titled Tuesday Blitz September 27 Early 2022"]
[White "Tomaszewski, Kacper"]
[Black "Levitskiy, Andrey"]
[WhiteFideId "1127373"]
[BlackFideId "14132885"]
[WhiteElo "2133"]
[BlackElo "2303"]
[Result "1-0"]
[Round "04"]
[TimeControl "180+1"]
[Date "2022.09.27"]
[WhiteClock "0:00:05"]
[BlackClock "0:00:01"]

1. d4 {[%clk 0:03:00]}  Nf6 {[%clk 0:02:59]} 2. c4 {[%clk 0:03:00]}  e6 {[%clk 0:03:00]} 3. Nc3 {[%clk 0:03:01]}  Bb4 {[%clk 0:03:00]} 4. Bf4 {[%clk 0:03:02]}  c5 {[%clk 0:02:45]} 5. e3 {[%clk 0:03:01]}  d5 {[%clk 0:02:20]} 6. Nf3 {[%clk 0:03:00]}  Ne4 {[%clk 0:02:13]} 7. Qc2 {[%clk 0:02:50]}  Qa5 {[%clk 0:02:12]} 8. Bd3 {[%clk 0:02:41]}  Nxc3 {[%clk 0:02:04]} 9. O-O {[%clk 0:02:41]}  cxd4 {[%clk 0:01:48]} 10. a3 {[%clk 0:02:27]}  Be7 {[%clk 0:01:40]} 11. bxc3 {[%clk 0:02:20]}  Qxc3 {[%clk 0:01:36]} 12. Qxc3 {[%clk 0:02:15]}  dxc3 {[%clk 0:01:36]} 13. cxd5 {[%clk 0:02:15]}  exd5 {[%clk 0:01:36]} 14. Rfc1 {[%clk 0:02:10]}  Nc6 {[%clk 0:01:34]} 15. Nd4 {[%clk 0:02:00]}  Nxd4 {[%clk 0:01:08]} 16. exd4 {[%clk 0:02:01]}  Be6 {[%clk 0:00:42]} 17. Rxc3 {[%clk 0:02:00]}  O-O {[%clk 0:00:43]} 18. Rc7 {[%clk 0:01:56]}  Bf6 {[%clk 0:00:42]} 19. Rxb7 {[%clk 0:01:52]}  Bxd4 {[%clk 0:00:41]} 20. Rd1 {[%clk 0:01:51]}  Bb6 {[%clk 0:00:35]} 21. h3 {[%clk 0:01:36]}  h6 {[%clk 0:00:31]} 22. Bb5 {[%clk 0:01:29]}  Rfd8 {[%clk 0:00:28]} 23. a4 {[%clk 0:01:15]}  Rac8 {[%clk 0:00:14]} 24. Bd2 {[%clk 0:01:11]}  Rc2 {[%clk 0:00:10]} 25. a5 {[%clk 0:01:11]}  Bc5 {[%clk 0:00:06]} 26. Be3 {[%clk 0:01:06]}  Bxe3 {[%clk 0:00:06]} 27. fxe3 {[%clk 0:01:06]}  a6 {[%clk 0:00:05]} 28. Bxa6 {[%clk 0:01:03]}  Ra2 {[%clk 0:00:06]} 29. Rb5 {[%clk 0:00:57]}  Ra8 {[%clk 0:00:06]} 30. Bb7 {[%clk 0:00:40]}  R8xa5 {[%clk 0:00:07]} 31. Rxa5 {[%clk 0:00:36]}  Rxa5 {[%clk 0:00:08]} 32. e4 {[%clk 0:00:35]}  dxe4 {[%clk 0:00:05]} 33. Bxe4 {[%clk 0:00:34]}  g6 {[%clk 0:00:06]} 34. Bf3 {[%clk 0:00:33]}  Ra2 {[%clk 0:00:06]} 35. Re1 {[%clk 0:00:32]}  Rb2 {[%clk 0:00:06]} 36. Re2 {[%clk 0:00:32]}  Rb1+ {[%clk 0:00:06]} 37. Kf2 {[%clk 0:00:32]}  Rb6 {[%clk 0:00:06]} 38. Rd2 {[%clk 0:00:32]}  Kg7 {[%clk 0:00:07]} 39. Rc2 {[%clk 0:00:32]}  h5 {[%clk 0:00:07]} 40. Rd2 {[%clk 0:00:32]}  Rb4 {[%clk 0:00:07]} 41. Rc2 {[%clk 0:00:32]}  Kf6 {[%clk 0:00:07]} 42. Rd2 {[%clk 0:00:32]}  Rb6 {[%clk 0:00:07]} 43. Rc2 {[%clk 0:00:33]}  Rd6 {[%clk 0:00:08]} 44. Re2 {[%clk 0:00:33]}  Bf5 {[%clk 0:00:07]} 45. Rb2 {[%clk 0:00:33]}  Rd3 {[%clk 0:00:07]} 46. Rb6+ {[%clk 0:00:33]}  Kg7 {[%clk 0:00:07]} 47. Rb2 {[%clk 0:00:32]}  Ra3 {[%clk 0:00:07]} 48. Rd2 {[%clk 0:00:32]}  h4 {[%clk 0:00:07]} 49. Rb2 {[%clk 0:00:32]}  Be6 {[%clk 0:00:07]} 50. Rd2 {[%clk 0:00:27]}  Ra5 {[%clk 0:00:07]} 51. Rd4 {[%clk 0:00:26]}  g5 {[%clk 0:00:08]} 52. Rd2 {[%clk 0:00:26]}  f5 {[%clk 0:00:08]} 53. Rb2 {[%clk 0:00:25]}  Kf6 {[%clk 0:00:08]} 54. Rb6 {[%clk 0:00:25]}  Ra2+ {[%clk 0:00:08]} 55. Kg1 {[%clk 0:00:25]}  Ke5 {[%clk 0:00:08]} 56. Rb5+ {[%clk 0:00:15]}  Kf4 {[%clk 0:00:06]} 57. Rb1 {[%clk 0:00:13]}  Kg3 {[%clk 0:00:04]} 58. Re1 {[%clk 0:00:13]}  Bc4 {[%clk 0:00:03]} 59. Bb7 {[%clk 0:00:12]}  g4 {[%clk 0:00:02]} 60. hxg4 {[%clk 0:00:10]}  fxg4 {[%clk 0:00:03]} 61. Re3+ {[%clk 0:00:09]}  Kf4 {[%clk 0:00:04]} 62. Re4+ {[%clk 0:00:09]}  Kf5 {[%clk 0:00:04]} 63. Rxc4 {[%clk 0:00:09]}  Ra1+ {[%clk 0:00:05]} 64. Kf2 {[%clk 0:00:09]}  Ra2+ {[%clk 0:00:05]} 65. Ke3 {[%clk 0:00:08]}  Ra3+ {[%clk 0:00:04]} 66. Kd4 {[%clk 0:00:08]}  Ra2 {[%clk 0:00:03]} 67. Rc5+ {[%clk 0:00:07]}  Kf4 {[%clk 0:00:03]} 68. Rc8 {[%clk 0:00:04]}  Rd2+ {[%clk 0:00:03]} 69. Kc3 {[%clk 0:00:05]}  Rd7 {[%clk 0:00:03]} 70. Rf8+ {[%clk 0:00:05]}  Kg3 {[%clk 0:00:03]} 71. Be4 {[%clk 0:00:05]}  Re7 {[%clk 0:00:03]} 72. Kd4 {[%clk 0:00:05]}  h3 {[%clk 0:00:02]} 73. gxh3 {[%clk 0:00:05]}  Kxh3 {[%clk 0:00:03]} 74. Rh8+ {[%clk 0:00:05]}  Kg3 {[%clk 0:00:04]} 75. Rg8 {[%clk 0:00:06]}  Rd7+ {[%clk 0:00:04]} 76. Ke5 {[%clk 0:00:06]}  Re7+ {[%clk 0:00:04]} 77. Kf5 {[%clk 0:00:06]}  Kf2 {[%clk 0:00:03]} 78. Rxg4 {[%clk 0:00:06]}  Rf7+ {[%clk 0:00:04]} 79. Ke6 {[%clk 0:00:06]}  Rf8 {[%clk 0:00:04]} 80. Rg5 {[%clk 0:00:06]}  Ke3 {[%clk 0:00:04]} 81. Bf5 {[%clk 0:00:07]}  Re8+ {[%clk 0:00:05]} 82. Kf7 {[%clk 0:00:07]}  Rb8 {[%clk 0:00:05]} 83. Rg1 {[%clk 0:00:07]}  Kf4 {[%clk 0:00:05]} 84. Be6 {[%clk 0:00:07]}  Ke5 {[%clk 0:00:05]} 85. Re1+ {[%clk 0:00:08]}  Kd6 {[%clk 0:00:06]} 86. Rd1+ {[%clk 0:00:08]}  Ke5 {[%clk 0:00:06]} 87. Rd5+ {[%clk 0:00:08]}  Kf4 {[%clk 0:00:07]} 88. Ra5 {[%clk 0:00:08]}  Rb7+ {[%clk 0:00:07]} 89. Kf6 {[%clk 0:00:09]}  Rb8 {[%clk 0:00:07]} 90. Ra4+ {[%clk 0:00:09]}  Ke3 {[%clk 0:00:08]} 91. Bf5 {[%clk 0:00:09]}  Rf8+ {[%clk 0:00:08]} 92. Ke5 {[%clk 0:00:10]}  Re8+ {[%clk 0:00:08]} 93. Be6 {[%clk 0:00:10]}  Kf3 {[%clk 0:00:08]} 94. Ra3+ {[%clk 0:00:11]}  Ke2 {[%clk 0:00:08]} 95. Kf5 {[%clk 0:00:10]}  Kd2 {[%clk 0:00:07]} 96. Bd5 {[%clk 0:00:10]}  Kc2 {[%clk 0:00:06]} 97. Be4+ {[%clk 0:00:10]}  Kd2 {[%clk 0:00:06]} 98. Rg3 {[%clk 0:00:10]}  Ke2 {[%clk 0:00:06]} 99. Kf4 {[%clk 0:00:11]}  Rf8+ {[%clk 0:00:06]} 100. Bf5 {[%clk 0:00:12]}  Kf2 {[%clk 0:00:06]} 101. Ra3 {[%clk 0:00:12]}  Ke2 {[%clk 0:00:06]} 102. Ra2+ {[%clk 0:00:12]}  Kd1 {[%clk 0:00:06]} 103. Ke4 {[%clk 0:00:10]}  Rf7 {[%clk 0:00:05]} 104. Bg4+ {[%clk 0:00:10]}  Kc1 {[%clk 0:00:05]} 105. Kd3 {[%clk 0:00:09]}  Rf4 {[%clk 0:00:03]} 106. Bd7 {[%clk 0:00:08]}  Rf6 {[%clk 0:00:03]} 107. Rc2+ {[%clk 0:00:08]}  Kb1 {[%clk 0:00:03]} 108. Rc7 {[%clk 0:00:05]}  Rd6+ {[%clk 0:00:03]} 109. Kc3 {[%clk 0:00:06]}  Ka2 {[%clk 0:00:02]} 110. Bf5 {[%clk 0:00:05]}  Rd5 {[%clk 0:00:01]} 111. Ra7+ {[%clk 0:00:05]}  Ra5 {[%clk 0:00:01]} 112. Rxa5# {[%clk 0:00:05]} 1-0


[Site "https://www.chess.com"]

[Event "Titled Tuesday Blitz September 27 Early 2022"]
[White "Vignesh, N R"]
[Black "Kislov, Oleg"]
[WhiteFideId "25012215"]
[BlackFideId "13503774"]
[WhiteElo "2363"]
[BlackElo "2185"]
[Result "1-0"]
[Round "04"]
[TimeControl "180+1"]
[Date "2022.09.27"]
[WhiteClock "0:01:41"]
[BlackClock "0:00:11"]

1. Nf3 {[%clk 0:03:00]}  d5 {[%clk 0:02:59]} 2. g3 {[%clk 0:02:59]}  Nf6 {[%clk 0:02:59]} 3. Bg2 {[%clk 0:02:59]}  c5 {[%clk 0:02:59]} 4. O-O {[%clk 0:02:59]}  Nc6 {[%clk 0:03:00]} 5. d4 {[%clk 0:02:58]}  e6 {[%clk 0:02:58]} 6. c4 {[%clk 0:02:58]}  dxc4 {[%clk 0:02:50]} 7. dxc5 {[%clk 0:02:57]}  Qxd1 {[%clk 0:02:47]} 8. Rxd1 {[%clk 0:02:57]}  Bxc5 {[%clk 0:02:47]} 9. Nbd2 {[%clk 0:02:57]}  Bd7 {[%clk 0:02:35]} 10. Nxc4 {[%clk 0:02:57]}  Ke7 {[%clk 0:02:30]} 11. Nfe5 {[%clk 0:02:51]}  Rhd8 {[%clk 0:02:21]} 12. Bg5 {[%clk 0:02:42]}  Rac8 {[%clk 0:02:01]} 13. Rac1 {[%clk 0:02:10]}  Be8 {[%clk 0:01:18]} 14. Nxc6+ {[%clk 0:02:05]}  Bxc6 {[%clk 0:01:11]} 15. Rxd8 {[%clk 0:02:06]}  Kxd8 {[%clk 0:01:00]} 16. Bxc6 {[%clk 0:02:03]}  Rxc6 {[%clk 0:00:56]} 17. Na5 {[%clk 0:02:03]}  Bxf2+ {[%clk 0:00:18]} 18. Kxf2 {[%clk 0:02:02]}  Rxc1 {[%clk 0:00:18]} 19. Bxc1 {[%clk 0:02:03]}  Kc7 {[%clk 0:00:19]} 20. Bf4+ {[%clk 0:02:01]}  Kb6 {[%clk 0:00:18]} 21. Nc4+ {[%clk 0:02:01]}  Kc5 {[%clk 0:00:18]} 22. Nd6 {[%clk 0:01:57]}  g5 {[%clk 0:00:16]} 23. Bxg5 {[%clk 0:01:50]}  Ng4+ {[%clk 0:00:15]} 24. Kf3 {[%clk 0:01:49]}  Ne5+ {[%clk 0:00:15]} 25. Ke4 {[%clk 0:01:47]}  Kxd6 {[%clk 0:00:14]} 26. Bf4 {[%clk 0:01:46]}  f6 {[%clk 0:00:14]} 27. g4 {[%clk 0:01:45]}  h6 {[%clk 0:00:13]} 28. h4 {[%clk 0:01:42]}  b5 {[%clk 0:00:11]} 29. Bxe5+ {[%clk 0:01:41]}  fxe5 {[%clk 0:00:11]} 30. g5 {[%clk 0:01:41]}  hxg5 {[%clk 0:00:11]} 31. hxg5 {[%clk 0:01:41]}  a5 {[%clk 0:00:11]} 32. g6 {[%clk 0:01:41]} 1-0


[Site "https://www.chess.com"]

[Event "Titled Tuesday Blitz September 27 Early 2022"]
[White "Vlassov, Nikolai"]
[Black "Oparin, Grigoriy"]
[WhiteFideId "4103360"]
[BlackFideId "24125890"]
[WhiteElo "2324"]
[BlackElo "2639"]
[Result "0-1"]
[Round "04"]
[TimeControl "180+1"]
[Date "2022.09.27"]
[WhiteClock "0:00:01"]
[BlackClock "0:00:16"]

1. e4 {[%clk 0:03:00]}  e5 {[%clk 0:02:59]} 2. Bc4 {[%clk 0:03:00]}  Nf6 {[%clk 0:02:57]} 3. d3 {[%clk 0:03:01]}  Nc6 {[%clk 0:02:57]} 4. Nf3 {[%clk 0:03:01]}  Bc5 {[%clk 0:02:55]} 5. Bg5 {[%clk 0:03:01]}  h6 {[%clk 0:02:51]} 6. Bh4 {[%clk 0:03:01]}  d6 {[%clk 0:02:51]} 7. Nc3 {[%clk 0:03:01]}  g5 {[%clk 0:02:44]} 8. Bg3 {[%clk 0:03:00]}  a6 {[%clk 0:02:43]} 9. Nd2 {[%clk 0:02:56]}  Qe7 {[%clk 0:02:37]} 10. h4 {[%clk 0:02:56]}  g4 {[%clk 0:02:37]} 11. h5 {[%clk 0:02:56]}  Nh7 {[%clk 0:02:03]} 12. Bh4 {[%clk 0:02:55]}  Qd7 {[%clk 0:02:03]} 13. Nd5 {[%clk 0:02:54]}  Na5 {[%clk 0:01:59]} 14. b4 {[%clk 0:02:28]}  Nxc4 {[%clk 0:01:59]} 15. Nxc4 {[%clk 0:02:28]}  Ba7 {[%clk 0:01:56]} 16. Qe2 {[%clk 0:02:21]}  b5 {[%clk 0:01:53]} 17. Nce3 {[%clk 0:02:20]}  c6 {[%clk 0:01:52]} 18. Nf6+ {[%clk 0:02:16]}  Nxf6 {[%clk 0:01:50]} 19. Bxf6 {[%clk 0:02:16]}  Rh7 {[%clk 0:01:42]} 20. Nf5 {[%clk 0:02:16]}  Qe6 {[%clk 0:01:19]} 21. Qxg4 {[%clk 0:02:09]}  Kf8 {[%clk 0:01:14]} 22. Qh4 {[%clk 0:01:32]}  Ke8 {[%clk 0:01:02]} 23. Ng7+ {[%clk 0:01:19]}  Rxg7 {[%clk 0:01:01]} 24. Bxg7 {[%clk 0:01:20]}  f5 {[%clk 0:01:02]} 25. Qf6 {[%clk 0:01:12]}  Qxf6 {[%clk 0:01:02]} 26. Bxf6 {[%clk 0:01:13]}  Kf7 {[%clk 0:01:03]} 27. Bh4 {[%clk 0:01:12]}  f4 {[%clk 0:00:56]} 28. f3 {[%clk 0:01:05]}  a5 {[%clk 0:00:54]} 29. bxa5 {[%clk 0:00:51]}  Bd4 {[%clk 0:00:54]} 30. Rc1 {[%clk 0:00:42]}  Rxa5 {[%clk 0:00:50]} 31. Bf2 {[%clk 0:00:33]}  Bc3+ {[%clk 0:00:48]} 32. Ke2 {[%clk 0:00:34]}  Rxa2 {[%clk 0:00:49]} 33. g3 {[%clk 0:00:30]}  fxg3 {[%clk 0:00:40]} 34. Bxg3 {[%clk 0:00:30]}  Be6 {[%clk 0:00:39]} 35. f4 {[%clk 0:00:27]}  Bg4+ {[%clk 0:00:37]} 36. Ke3 {[%clk 0:00:25]}  b4 {[%clk 0:00:22]} 37. fxe5 {[%clk 0:00:25]}  dxe5 {[%clk 0:00:22]} 38. Rhf1+ {[%clk 0:00:25]}  Ke6 {[%clk 0:00:22]} 39. Rf8 {[%clk 0:00:20]}  b3 {[%clk 0:00:21]} 40. Bh4 {[%clk 0:00:10]}  Rxc2 {[%clk 0:00:16]} 41. Rf6+ {[%clk 0:00:07]}  Kd7 {[%clk 0:00:17]} 42. Rf7+ {[%clk 0:00:07]}  Kc8 {[%clk 0:00:16]} 43. Rf8+ {[%clk 0:00:06]}  Kb7 {[%clk 0:00:17]} 44. Rxc2 {[%clk 0:00:05]}  bxc2 {[%clk 0:00:17]} 45. Rf1 {[%clk 0:00:05]}  Bd1 {[%clk 0:00:16]} 46. Rf7+ {[%clk 0:00:01]}  Ka6 {[%clk 0:00:16]} 0-1


[Site "https://www.chess.com"]

[Event "Titled Tuesday Blitz September 27 Early 2022"]
[White "Vogel, Roven"]
[Black "Kalashian, David"]
[WhiteFideId "12908088"]
[BlackFideId "13302418"]
[WhiteElo "2501"]
[BlackElo "2490"]
[Result "1-0"]
[Round "04"]
[TimeControl "180+1"]
[Date "2022.09.27"]
[WhiteClock "0:00:21"]
[BlackClock "0:00:05"]

1. d4 {[%clk 0:03:00]}  Nf6 {[%clk 0:02:59]} 2. Nc3 {[%clk 0:03:00]}  d5 {[%clk 0:02:59]} 3. Bf4 {[%clk 0:03:00]}  g6 {[%clk 0:02:55]} 4. e3 {[%clk 0:03:00]}  Bg7 {[%clk 0:02:55]} 5. Nf3 {[%clk 0:02:59]}  O-O {[%clk 0:02:55]} 6. Nb5 {[%clk 0:02:58]}  Na6 {[%clk 0:02:53]} 7. h3 {[%clk 0:02:57]}  Ne4 {[%clk 0:02:51]} 8. Be2 {[%clk 0:02:52]}  c6 {[%clk 0:02:41]} 9. Na3 {[%clk 0:02:51]}  Nc7 {[%clk 0:02:15]} 10. O-O {[%clk 0:02:49]}  b5 {[%clk 0:02:08]} 11. c3 {[%clk 0:02:42]}  a5 {[%clk 0:01:54]} 12. Nb1 {[%clk 0:02:42]}  a4 {[%clk 0:01:50]} 13. Nbd2 {[%clk 0:02:35]}  a3 {[%clk 0:01:41]} 14. Qc1 {[%clk 0:02:23]}  axb2 {[%clk 0:01:35]} 15. Qxb2 {[%clk 0:02:24]}  Bf5 {[%clk 0:01:26]} 16. Ne5 {[%clk 0:02:20]}  Bxe5 {[%clk 0:01:12]} 17. Bxe5 {[%clk 0:02:19]}  f6 {[%clk 0:01:13]} 18. Bf4 {[%clk 0:02:15]}  g5 {[%clk 0:00:58]} 19. Bh2 {[%clk 0:02:14]}  Nd6 {[%clk 0:00:51]} 20. Nb3 {[%clk 0:02:12]}  Ne6 {[%clk 0:00:47]} 21. f3 {[%clk 0:02:02]}  Qb6 {[%clk 0:00:43]} 22. Bxd6 {[%clk 0:01:56]}  exd6 {[%clk 0:00:43]} 23. Nd2 {[%clk 0:01:53]}  Qc7 {[%clk 0:00:32]} 24. Bd1 {[%clk 0:01:46]}  Bg6 {[%clk 0:00:27]} 25. Bb3 {[%clk 0:01:41]}  Kg7 {[%clk 0:00:25]} 26. Rae1 {[%clk 0:01:36]}  Rfe8 {[%clk 0:00:22]} 27. g3 {[%clk 0:01:36]}  Re7 {[%clk 0:00:21]} 28. e4 {[%clk 0:01:32]}  dxe4 {[%clk 0:00:15]} 29. fxe4 {[%clk 0:01:32]}  Rae8 {[%clk 0:00:16]} 30. Kg2 {[%clk 0:01:30]}  c5 {[%clk 0:00:15]} 31. Bd5 {[%clk 0:01:19]}  Qd7 {[%clk 0:00:07]} 32. Bb3 {[%clk 0:00:30]}  Nc7 {[%clk 0:00:06]} 33. Bc2 {[%clk 0:00:30]}  Ne6 {[%clk 0:00:05]} 34. Bd3 {[%clk 0:00:29]}  c4 {[%clk 0:00:05]} 35. Bc2 {[%clk 0:00:28]}  Nd8 {[%clk 0:00:05]} 36. Rb1 {[%clk 0:00:21]} 1-0


[Site "https://www.chess.com"]

[Event "Titled Tuesday Blitz September 27 Early 2022"]
[White "Wachinger, Guenther"]
[Black "Meshkovs, Nikita"]
[WhiteFideId "4604261"]
[BlackFideId "11602740"]
[WhiteElo "2212"]
[BlackElo "2506"]
[Result "0-1"]
[Round "04"]
[TimeControl "180+1"]
[Date "2022.09.27"]
[WhiteClock "0:00:03"]
[BlackClock "0:00:15"]

1. e4 {[%clk 0:03:00]}  c5 {[%clk 0:02:59]} 2. Nf3 {[%clk 0:03:01]}  Nc6 {[%clk 0:03:00]} 3. Bb5 {[%clk 0:02:59]}  e6 {[%clk 0:02:59]} 4. Bxc6 {[%clk 0:02:59]}  bxc6 {[%clk 0:03:00]} 5. b3 {[%clk 0:02:59]}  Ne7 {[%clk 0:03:00]} 6. Bb2 {[%clk 0:03:00]}  Ng6 {[%clk 0:02:59]} 7. O-O {[%clk 0:02:58]}  f6 {[%clk 0:03:00]} 8. c4 {[%clk 0:02:38]}  Bd6 {[%clk 0:02:49]} 9. d4 {[%clk 0:02:35]}  cxd4 {[%clk 0:02:49]} 10. Nxd4 {[%clk 0:02:33]}  Be5 {[%clk 0:02:36]} 11. Nc3 {[%clk 0:02:31]}  O-O {[%clk 0:02:31]} 12. g3 {[%clk 0:02:13]}  c5 {[%clk 0:02:25]} 13. Nde2 {[%clk 0:02:11]}  Bb7 {[%clk 0:02:23]} 14. f4 {[%clk 0:02:04]}  Bc7 {[%clk 0:02:19]} 15. Qd3 {[%clk 0:01:58]}  Bc6 {[%clk 0:01:58]} 16. Rad1 {[%clk 0:01:51]}  Qe8 {[%clk 0:01:57]} 17. Na4 {[%clk 0:01:48]}  f5 {[%clk 0:01:42]} 18. e5 {[%clk 0:01:41]}  Bb6 {[%clk 0:01:17]} 19. Ba3 {[%clk 0:01:36]}  Qc8 {[%clk 0:00:41]} 20. Nec3 {[%clk 0:01:18]}  Rd8 {[%clk 0:00:37]} 21. Qd6 {[%clk 0:01:16]}  Qb7 {[%clk 0:00:30]} 22. Nxc5 {[%clk 0:01:14]}  Bf3 {[%clk 0:00:24]} 23. Rd4 {[%clk 0:01:01]}  Bxc5 {[%clk 0:00:20]} 24. Bxc5 {[%clk 0:00:59]}  Rac8 {[%clk 0:00:20]} 25. Ba3 {[%clk 0:00:38]}  h5 {[%clk 0:00:19]} 26. Nb5 {[%clk 0:00:34]}  Bh1 {[%clk 0:00:18]} 27. Rf2 {[%clk 0:00:31]}  a6 {[%clk 0:00:19]} 28. Nc3 {[%clk 0:00:20]}  h4 {[%clk 0:00:19]} 29. Qb4 {[%clk 0:00:20]}  Qa8 {[%clk 0:00:19]} 30. Na4 {[%clk 0:00:19]}  Rb8 {[%clk 0:00:19]} 31. Qd6 {[%clk 0:00:18]}  Bc6 {[%clk 0:00:17]} 32. Nc5 {[%clk 0:00:13]}  Kf7 {[%clk 0:00:16]} 33. Nd3 {[%clk 0:00:10]}  hxg3 {[%clk 0:00:14]} 34. hxg3 {[%clk 0:00:10]}  Rh8 {[%clk 0:00:15]} 35. Rh2 {[%clk 0:00:10]}  Rxh2 {[%clk 0:00:15]} 36. Kxh2 {[%clk 0:00:10]}  Rh8+ {[%clk 0:00:15]} 37. Kg1 {[%clk 0:00:11]}  Rh1+ {[%clk 0:00:15]} 38. Kf2 {[%clk 0:00:12]}  Rh2+ {[%clk 0:00:16]} 39. Ke3 {[%clk 0:00:12]}  Qh8 {[%clk 0:00:15]} 40. Nf2 {[%clk 0:00:04]}  Qh5 {[%clk 0:00:14]} 41. Qxd7+ {[%clk 0:00:02]}  Bxd7 {[%clk 0:00:14]} 42. Rxd7+ {[%clk 0:00:03]}  Kg8 {[%clk 0:00:15]} 43. Rd8+ {[%clk 0:00:03]}  Kh7 {[%clk 0:00:15]} 0-1


[Site "https://www.chess.com"]

[Event "Titled Tuesday Blitz September 27 Early 2022"]
[White "White, John S."]
[Black "Lahdelma, Henri"]
[WhiteFideId "2502348"]
[BlackFideId "510394"]
[WhiteElo "1902"]
[BlackElo "2210"]
[Result "0-1"]
[Round "04"]
[TimeControl "180+1"]
[Date "2022.09.27"]
[WhiteClock "0:01:03"]
[BlackClock "0:02:48"]

1. e4 {[%clk 0:02:58]}  e6 {[%clk 0:02:59]} 2. d3 {[%clk 0:02:57]}  d5 {[%clk 0:03:00]} 3. Nd2 {[%clk 0:02:56]}  Nf6 {[%clk 0:03:00]} 4. Ngf3 {[%clk 0:02:56]}  Nc6 {[%clk 0:03:00]} 5. g3 {[%clk 0:02:55]}  dxe4 {[%clk 0:03:00]} 6. dxe4 {[%clk 0:02:55]}  e5 {[%clk 0:03:00]} 7. Bg2 {[%clk 0:02:54]}  Bc5 {[%clk 0:03:01]} 8. O-O {[%clk 0:02:53]}  O-O {[%clk 0:03:01]} 9. Qe2 {[%clk 0:02:41]}  a5 {[%clk 0:02:57]} 10. Nc4 {[%clk 0:02:39]}  Qe7 {[%clk 0:02:57]} 11. Bg5 {[%clk 0:02:33]}  b6 {[%clk 0:02:57]} 12. Rfd1 {[%clk 0:02:27]}  Ba6 {[%clk 0:02:57]} 13. a4 {[%clk 0:02:17]}  Rad8 {[%clk 0:02:53]} 14. Nfd2 {[%clk 0:02:00]}  Nd4 {[%clk 0:02:52]} 15. Qd3 {[%clk 0:01:51]}  h6 {[%clk 0:02:48]} 16. Bxf6 {[%clk 0:01:48]}  Qxf6 {[%clk 0:02:49]} 17. c3 {[%clk 0:01:35]}  Nb3 {[%clk 0:02:47]} 18. Qc2 {[%clk 0:01:24]}  Nxa1 {[%clk 0:02:47]} 19. Rxa1 {[%clk 0:01:23]}  Qxf2+ {[%clk 0:02:47]} 20. Kh1 {[%clk 0:01:20]}  Bxc4 {[%clk 0:02:48]} 21. Rf1 {[%clk 0:01:09]}  Qxd2 {[%clk 0:02:47]} 22. Qxd2 {[%clk 0:01:03]}  Rxd2 {[%clk 0:02:48]} 0-1


[Site "https://www.chess.com"]

[Event "Titled Tuesday Blitz September 27 Early 2022"]
[White "Winkels, Marcel"]
[Black "Stanisz, Patryk"]
[WhiteFideId "1003887"]
[BlackFideId "1123106"]
[WhiteElo "1900"]
[BlackElo "1833"]
[Result "1-0"]
[Round "04"]
[TimeControl "180+1"]
[Date "2022.09.27"]
[WhiteClock "0:00:04"]
[BlackClock "0:00:03"]

1. d4 {[%clk 0:03:00]}  d5 {[%clk 0:02:59]} 2. Nc3 {[%clk 0:03:00]}  Nf6 {[%clk 0:02:57]} 3. Bf4 {[%clk 0:03:00]}  a6 {[%clk 0:02:56]} 4. e3 {[%clk 0:02:59]}  Bf5 {[%clk 0:02:55]} 5. Bd3 {[%clk 0:02:57]}  Bxd3 {[%clk 0:02:55]} 6. Qxd3 {[%clk 0:02:56]}  e6 {[%clk 0:02:56]} 7. Nge2 {[%clk 0:02:43]}  Bd6 {[%clk 0:02:55]} 8. O-O {[%clk 0:02:35]}  O-O {[%clk 0:02:54]} 9. Bg3 {[%clk 0:02:31]}  Nc6 {[%clk 0:02:47]} 10. a3 {[%clk 0:02:29]}  Qe7 {[%clk 0:02:46]} 11. Nf4 {[%clk 0:02:20]}  Rad8 {[%clk 0:02:43]} 12. b4 {[%clk 0:02:03]}  Nb8 {[%clk 0:02:29]} 13. f3 {[%clk 0:02:01]}  c6 {[%clk 0:02:27]} 14. Nfe2 {[%clk 0:01:58]}  e5 {[%clk 0:02:24]} 15. Rad1 {[%clk 0:01:42]}  Nbd7 {[%clk 0:02:21]} 16. Na4 {[%clk 0:01:34]}  Rfe8 {[%clk 0:02:20]} 17. Nc5 {[%clk 0:01:33]}  Bxc5 {[%clk 0:02:11]} 18. bxc5 {[%clk 0:01:33]}  exd4 {[%clk 0:02:11]} 19. Nxd4 {[%clk 0:01:23]}  Qxe3+ {[%clk 0:02:10]} 20. Qxe3 {[%clk 0:01:09]}  Rxe3 {[%clk 0:02:11]} 21. Nb3 {[%clk 0:01:07]}  Rc3 {[%clk 0:02:06]} 22. Bd6 {[%clk 0:00:52]}  Rxc2 {[%clk 0:02:01]} 23. Na5 {[%clk 0:00:50]}  Nxc5 {[%clk 0:01:53]} 24. Bxc5 {[%clk 0:00:48]}  Rxc5 {[%clk 0:01:54]} 25. Nxb7 {[%clk 0:00:48]}  Rc3 {[%clk 0:01:37]} 26. Nxd8 {[%clk 0:00:47]}  c5 {[%clk 0:01:36]} 27. Rc1 {[%clk 0:00:46]}  Rxa3 {[%clk 0:01:12]} 28. Rxc5 {[%clk 0:00:45]}  g6 {[%clk 0:01:13]} 29. Rc7 {[%clk 0:00:32]}  Nh5 {[%clk 0:01:09]} 30. Nxf7 {[%clk 0:00:29]}  Kg7 {[%clk 0:01:06]} 31. Ne5+ {[%clk 0:00:24]}  Kf6 {[%clk 0:01:06]} 32. Ng4+ {[%clk 0:00:23]}  Kg5 {[%clk 0:01:04]} 33. Rxh7 {[%clk 0:00:18]}  Ra2 {[%clk 0:01:00]} 34. Ne3 {[%clk 0:00:14]}  d4 {[%clk 0:00:57]} 35. Nd1 {[%clk 0:00:13]}  Nf4 {[%clk 0:00:56]} 36. g3 {[%clk 0:00:11]}  Ne2+ {[%clk 0:00:48]} 37. Kh1 {[%clk 0:00:11]}  Nc3 {[%clk 0:00:49]} 38. Nxc3 {[%clk 0:00:10]}  dxc3 {[%clk 0:00:49]} 39. Rc1 {[%clk 0:00:10]}  c2 {[%clk 0:00:33]} 40. Rc7 {[%clk 0:00:09]}  a5 {[%clk 0:00:33]} 41. R7xc2 {[%clk 0:00:07]}  Ra3 {[%clk 0:00:34]} 42. Rc3 {[%clk 0:00:07]}  Ra2 {[%clk 0:00:34]} 43. R1c2 {[%clk 0:00:08]}  Ra1+ {[%clk 0:00:35]} 44. Kg2 {[%clk 0:00:08]}  a4 {[%clk 0:00:35]} 45. Rc4 {[%clk 0:00:07]}  a3 {[%clk 0:00:36]} 46. Ra4 {[%clk 0:00:07]}  Kf5 {[%clk 0:00:34]} 47. Rc3 {[%clk 0:00:07]}  Ra2+ {[%clk 0:00:34]} 48. Kh3 {[%clk 0:00:06]}  Re2 {[%clk 0:00:31]} 49. Rcxa3 {[%clk 0:00:07]}  g5 {[%clk 0:00:31]} 50. g4+ {[%clk 0:00:06]}  Kf6 {[%clk 0:00:29]} 51. Ra6+ {[%clk 0:00:06]}  Kf7 {[%clk 0:00:28]} 52. Rb3 {[%clk 0:00:05]}  Re7 {[%clk 0:00:25]} 53. Rbb6 {[%clk 0:00:05]}  Re8 {[%clk 0:00:18]} 54. Rf6+ {[%clk 0:00:06]}  Kg7 {[%clk 0:00:17]} 55. Rg6+ {[%clk 0:00:07]}  Kh7 {[%clk 0:00:17]} 56. Rxg5 {[%clk 0:00:06]}  Rf8 {[%clk 0:00:14]} 57. Rf5 {[%clk 0:00:05]}  Rb8 {[%clk 0:00:07]} 58. Rf7+ {[%clk 0:00:05]}  Kg8 {[%clk 0:00:07]} 59. Rd7 {[%clk 0:00:05]}  Rf8 {[%clk 0:00:06]} 60. Kg3 {[%clk 0:00:05]}  Re8 {[%clk 0:00:04]} 61. h4 {[%clk 0:00:04]}  Rc8 {[%clk 0:00:05]} 62. h5 {[%clk 0:00:04]}  Rf8 {[%clk 0:00:04]} 63. g5 {[%clk 0:00:04]}  Kh8 {[%clk 0:00:04]} 64. h6 {[%clk 0:00:04]}  Re8 {[%clk 0:00:04]} 65. g6 {[%clk 0:00:05]}  Rc8 {[%clk 0:00:03]} 66. Rh7+ {[%clk 0:00:04]}  Kg8 {[%clk 0:00:04]} 67. Rg7+ {[%clk 0:00:05]}  Kh8 {[%clk 0:00:04]} 68. Raa7 {[%clk 0:00:04]}  Rd8 {[%clk 0:00:02]} 69. Rh7+ {[%clk 0:00:04]}  Kg8 {[%clk 0:00:02]} 70. Rag7+ {[%clk 0:00:04]}  Kf8 {[%clk 0:00:03]} 71. Rh8# {[%clk 0:00:04]} 1-0


[Site "https://www.chess.com"]